[Event "Titled Tuesday Blitz April 12 Early 2022"]
[White "Wagh Suyog"]
[Black "Kazakouski, Valery"]
[WhiteFideId "25071688"]
[BlackFideId "13507443"]
[WhiteElo "2181"]
[BlackElo "2524"]
[Result "1-0"]
[Round "08"]
[TimeControl "180+1"]
[Date "2022.04.12"]
[WhiteClock "0:01:13"]
[BlackClock "0:00:36"]

1. e4 {[%clk 0:03:00]}  c5 {[%clk 0:02:56]} 2. Nf3 {[%clk 0:03:00]}  a6 {[%clk 0:02:56]} 3. d4 {[%clk 0:03:00]}  cxd4 {[%clk 0:02:56]} 4. Nxd4 {[%clk 0:03:01]}  Nf6 {[%clk 0:02:57]} 5. Bd3 {[%clk 0:03:00]}  e5 {[%clk 0:02:57]} 6. Nb3 {[%clk 0:02:59]}  d5 {[%clk 0:02:57]} 7. exd5 {[%clk 0:02:59]}  Nxd5 {[%clk 0:02:58]} 8. O-O {[%clk 0:02:59]}  Nb4 {[%clk 0:02:58]} 9. Be2 {[%clk 0:02:54]}  Qxd1 {[%clk 0:02:58]} 10. Bxd1 {[%clk 0:02:55]}  Bf5 {[%clk 0:02:58]} 11. Na3 {[%clk 0:02:47]}  N8c6 {[%clk 0:02:58]} 12. Re1 {[%clk 0:02:42]}  O-O-O {[%clk 0:02:58]} 13. Be3 {[%clk 0:02:38]}  Be7 {[%clk 0:02:53]} 14. Bf3 {[%clk 0:02:33]}  Bxc2 {[%clk 0:02:45]} 15. Rec1 {[%clk 0:02:30]}  Bxb3 {[%clk 0:02:30]} 16. axb3 {[%clk 0:02:30]}  f5 {[%clk 0:02:30]} 17. Nc4 {[%clk 0:02:29]}  e4 {[%clk 0:02:27]} 18. Be2 {[%clk 0:02:28]}  Nd3 {[%clk 0:02:00]} 19. Rc2 {[%clk 0:02:24]}  f4 {[%clk 0:01:50]} 20. Bb6 {[%clk 0:02:19]}  Rd7 {[%clk 0:01:44]} 21. Bg4 {[%clk 0:02:18]}  Bb4 {[%clk 0:01:31]} 22. Ba5 {[%clk 0:02:06]}  Bc5 {[%clk 0:01:22]} 23. b4 {[%clk 0:02:02]}  Bd4 {[%clk 0:00:57]} 24. b5 {[%clk 0:01:59]}  Nxa5 {[%clk 0:00:57]} 25. Nxa5+ {[%clk 0:01:49]}  Kd8 {[%clk 0:00:55]} 26. Bxd7 {[%clk 0:01:49]}  Kxd7 {[%clk 0:00:55]} 27. bxa6 {[%clk 0:01:46]}  bxa6 {[%clk 0:00:53]} 28. Ra4 {[%clk 0:01:47]}  Bb6 {[%clk 0:00:45]} 29. Nc4 {[%clk 0:01:39]}  Bc5 {[%clk 0:00:45]} 30. Ne5+ {[%clk 0:01:26]}  Nxe5 {[%clk 0:00:45]} 31. Rxc5 {[%clk 0:01:26]}  Kd6 {[%clk 0:00:46]} 32. Rc2 {[%clk 0:01:24]}  Kd5 {[%clk 0:00:42]} 33. Rxa6 {[%clk 0:01:18]}  Rb8 {[%clk 0:00:37]} 34. Ra5+ {[%clk 0:01:13]}  Kd4 {[%clk 0:00:37]} 35. Ra4+ {[%clk 0:01:13]}  Kd5 {[%clk 0:00:36]} 36. Rd2+ {[%clk 0:01:13]}  Nd3 {[%clk 0:00:36]} 37. f3 {[%clk 0:01:13]} 1-0


[Site "https://www.chess.com"]

[Event "Titled Tuesday Blitz April 12 Early 2022"]
[White "Zanette, Edgard Vinicius"]
[Black "Yanayt, Eugene"]
[WhiteFideId "2109263"]
[BlackFideId "2020165"]
[WhiteElo "2182"]
[BlackElo "2046"]
[Result "1-0"]
[Round "08"]
[TimeControl "180+1"]
[Date "2022.04.13"]
[WhiteClock "0:00:07"]
[BlackClock "0:00:01"]

1. e4 {[%clk 0:03:00]}  c5 {[%clk 0:02:59]} 2. Nc3 {[%clk 0:03:00]}  g6 {[%clk 0:02:57]} 3. f4 {[%clk 0:02:56]}  Bg7 {[%clk 0:02:56]} 4. Nf3 {[%clk 0:02:55]}  Nc6 {[%clk 0:02:55]} 5. Bc4 {[%clk 0:02:54]}  e6 {[%clk 0:02:53]} 6. O-O {[%clk 0:02:54]}  Nge7 {[%clk 0:02:53]} 7. d3 {[%clk 0:02:43]}  d5 {[%clk 0:02:49]} 8. Bb3 {[%clk 0:02:43]}  Nd4 {[%clk 0:02:43]} 9. exd5 {[%clk 0:02:33]}  Nxb3 {[%clk 0:02:41]} 10. axb3 {[%clk 0:02:32]}  exd5 {[%clk 0:02:41]} 11. Bd2 {[%clk 0:02:17]}  O-O {[%clk 0:02:39]} 12. Qe1 {[%clk 0:02:07]}  Nf5 {[%clk 0:02:24]} 13. Kh1 {[%clk 0:02:02]}  Re8 {[%clk 0:02:16]} 14. Qf2 {[%clk 0:02:00]}  Nd4 {[%clk 0:02:16]} 15. Nxd4 {[%clk 0:01:54]}  Bxd4 {[%clk 0:02:15]} 16. Qf3 {[%clk 0:01:54]}  Be6 {[%clk 0:02:08]} 17. f5 {[%clk 0:01:46]}  Bxf5 {[%clk 0:02:05]} 18. Nxd5 {[%clk 0:01:42]}  Bxb2 {[%clk 0:02:02]} 19. Rae1 {[%clk 0:01:20]}  Bd4 {[%clk 0:01:35]} 20. Rxe8+ {[%clk 0:01:15]}  Qxe8 {[%clk 0:01:34]} 21. Nc7 {[%clk 0:01:16]}  Qc8 {[%clk 0:01:25]} 22. Nxa8 {[%clk 0:01:13]}  Qxa8 {[%clk 0:01:26]} 23. Re1 {[%clk 0:01:10]}  Be6 {[%clk 0:01:17]} 24. Bg5 {[%clk 0:00:57]}  Kg7 {[%clk 0:00:27]} 25. h3 {[%clk 0:00:39]}  Qc8 {[%clk 0:00:23]} 26. Bf4 {[%clk 0:00:29]}  f6 {[%clk 0:00:20]} 27. Qe4 {[%clk 0:00:26]}  Bf7 {[%clk 0:00:18]} 28. Qe7 {[%clk 0:00:23]}  Bc3 {[%clk 0:00:11]} 29. Re2 {[%clk 0:00:20]}  a5 {[%clk 0:00:08]} 30. Bd6 {[%clk 0:00:19]}  b5 {[%clk 0:00:07]} 31. Bxc5 {[%clk 0:00:19]}  a4 {[%clk 0:00:07]} 32. bxa4 {[%clk 0:00:19]}  bxa4 {[%clk 0:00:07]} 33. Qa7 {[%clk 0:00:17]}  Kg8 {[%clk 0:00:05]} 34. Re7 {[%clk 0:00:15]}  Qf8 {[%clk 0:00:01]} 35. Qxa4 {[%clk 0:00:11]}  Qd8 {[%clk 0:00:01]} 36. Qa7 {[%clk 0:00:09]}  Qf8 {[%clk 0:00:01]} 37. d4 {[%clk 0:00:07]} 1-0


[Site "https://www.chess.com"]

[Event "Titled Tuesday Blitz April 12 Early 2022"]
[White "Zemlyanskii, Ivan"]
[Black "Coto Mederos, Michel"]
[WhiteFideId "24249971"]
[BlackFideId "3508528"]
[WhiteElo "1759"]
[BlackElo "2427"]
[Result "0-1"]
[Round "08"]
[TimeControl "180+1"]
[Date "2022.04.12"]
[WhiteClock "0:01:19"]
[BlackClock "0:00:12"]

1. d4 {[%clk 0:03:00]}  d5 {[%clk 0:02:59]} 2. c4 {[%clk 0:03:01]}  e6 {[%clk 0:02:59]} 3. Nf3 {[%clk 0:03:00]}  Nf6 {[%clk 0:02:59]} 4. e3 {[%clk 0:03:01]}  Be7 {[%clk 0:02:57]} 5. b3 {[%clk 0:03:00]}  b6 {[%clk 0:02:33]} 6. Bd3 {[%clk 0:03:00]}  Bb7 {[%clk 0:02:34]} 7. O-O {[%clk 0:03:00]}  O-O {[%clk 0:02:33]} 8. Bb2 {[%clk 0:03:00]}  Nbd7 {[%clk 0:02:32]} 9. Nc3 {[%clk 0:03:00]}  Ne4 {[%clk 0:02:32]} 10. Qc2 {[%clk 0:02:56]}  f5 {[%clk 0:02:23]} 11. Rfd1 {[%clk 0:02:56]}  c5 {[%clk 0:02:06]} 12. cxd5 {[%clk 0:02:53]}  exd5 {[%clk 0:02:05]} 13. dxc5 {[%clk 0:02:53]}  bxc5 {[%clk 0:02:00]} 14. Nxe4 {[%clk 0:02:52]}  fxe4 {[%clk 0:01:54]} 15. Bxe4 {[%clk 0:02:52]}  dxe4 {[%clk 0:01:47]} 16. Ne5 {[%clk 0:02:53]}  Nxe5 {[%clk 0:00:54]} 17. Rxd8 {[%clk 0:02:52]}  Nf3+ {[%clk 0:00:54]} 18. gxf3 {[%clk 0:02:51]}  Raxd8 {[%clk 0:00:55]} 19. f4 {[%clk 0:02:32]}  Rd6 {[%clk 0:00:49]} 20. Rd1 {[%clk 0:02:20]}  Rg6+ {[%clk 0:00:38]} 21. Kh1 {[%clk 0:02:20]}  Rxf4 {[%clk 0:00:31]} 22. Qc4+ {[%clk 0:02:01]}  Kh8 {[%clk 0:00:28]} 23. Qe6 {[%clk 0:02:00]}  Rxe6 {[%clk 0:00:23]} 24. Rg1 {[%clk 0:01:39]}  Rf7 {[%clk 0:00:18]} 25. Rd1 {[%clk 0:01:37]}  h6 {[%clk 0:00:17]} 26. Rd7 {[%clk 0:01:37]}  Bc6 {[%clk 0:00:17]} 27. Rc7 {[%clk 0:01:36]}  Rxf2 {[%clk 0:00:16]} 28. Bc3 {[%clk 0:01:33]}  Rc2 {[%clk 0:00:16]} 29. Ba5 {[%clk 0:01:28]}  Rd6 {[%clk 0:00:16]} 30. Be1 {[%clk 0:01:19]}  Rd1 {[%clk 0:00:14]} 31. Rc8+ {[%clk 0:01:18]}  Kh7 {[%clk 0:00:14]} 32. Rxc6 {[%clk 0:01:19]}  Rxe1# {[%clk 0:00:12]} 0-1


[Site "https://www.chess.com"]

[Event "Titled Tuesday Blitz April 12 Early 2022"]
[White "Zia, Tahsin Tajwar"]
[Black "Kosteniuk, Alexandra"]
[WhiteFideId "10211888"]
[BlackFideId "4128125"]
[WhiteElo "1800"]
[BlackElo "2469"]
[Result "1/2-1/2"]
[Round "08"]
[TimeControl "180+1"]
[Date "2022.04.13"]
[WhiteClock "0:00:08"]
[BlackClock "0:00:11"]

1. d4 {[%clk 0:03:00]}  Nf6 {[%clk 0:02:59]} 2. c4 {[%clk 0:02:59]}  e6 {[%clk 0:03:00]} 3. g3 {[%clk 0:02:59]}  d5 {[%clk 0:02:59]} 4. Bg2 {[%clk 0:02:59]}  dxc4 {[%clk 0:03:00]} 5. Nf3 {[%clk 0:02:59]}  Nc6 {[%clk 0:03:00]} 6. Qa4 {[%clk 0:02:58]}  Bb4+ {[%clk 0:03:00]} 7. Bd2 {[%clk 0:02:55]}  Bd6 {[%clk 0:03:00]} 8. O-O {[%clk 0:02:51]}  O-O {[%clk 0:02:56]} 9. Nc3 {[%clk 0:02:46]}  e5 {[%clk 0:02:53]} 10. dxe5 {[%clk 0:02:40]}  Nxe5 {[%clk 0:02:53]} 11. Bg5 {[%clk 0:02:33]}  h6 {[%clk 0:02:43]} 12. Bxf6 {[%clk 0:01:58]}  Qxf6 {[%clk 0:02:44]} 13. Nxe5 {[%clk 0:01:41]}  Qxe5 {[%clk 0:02:32]} 14. Qxc4 {[%clk 0:01:39]}  Be6 {[%clk 0:02:24]} 15. Qb5 {[%clk 0:01:38]}  Rab8 {[%clk 0:02:16]} 16. Rfd1 {[%clk 0:01:33]}  c6 {[%clk 0:02:03]} 17. Qxe5 {[%clk 0:01:25]}  Bxe5 {[%clk 0:02:03]} 18. f4 {[%clk 0:01:22]}  Bf6 {[%clk 0:02:00]} 19. e4 {[%clk 0:01:22]}  Bxc3 {[%clk 0:01:50]} 20. bxc3 {[%clk 0:01:22]}  Rfd8 {[%clk 0:01:51]} 21. a3 {[%clk 0:01:15]}  Kf8 {[%clk 0:01:47]} 22. Kf2 {[%clk 0:01:15]}  Ke7 {[%clk 0:01:46]} 23. Ke3 {[%clk 0:01:16]}  a5 {[%clk 0:01:41]} 24. Bf3 {[%clk 0:01:13]}  Bb3 {[%clk 0:01:41]} 25. Rd4 {[%clk 0:01:08]}  c5 {[%clk 0:01:37]} 26. Rxd8 {[%clk 0:01:04]}  Rxd8 {[%clk 0:01:38]} 27. e5 {[%clk 0:01:03]}  b5 {[%clk 0:01:35]} 28. Be4 {[%clk 0:01:01]}  a4 {[%clk 0:01:30]} 29. Bc6 {[%clk 0:00:59]}  Bc4 {[%clk 0:01:30]} 30. Be4 {[%clk 0:00:57]}  f6 {[%clk 0:01:20]} 31. exf6+ {[%clk 0:00:53]}  Kxf6 {[%clk 0:01:20]} 32. g4 {[%clk 0:00:51]}  Be6 {[%clk 0:01:09]} 33. Rg1 {[%clk 0:00:49]}  b4 {[%clk 0:01:04]} 34. cxb4 {[%clk 0:00:48]}  cxb4 {[%clk 0:01:05]} 35. axb4 {[%clk 0:00:47]}  Rb8 {[%clk 0:01:02]} 36. g5+ {[%clk 0:00:40]}  hxg5 {[%clk 0:01:02]} 37. fxg5+ {[%clk 0:00:36]}  Ke5 {[%clk 0:01:01]} 38. Rc1 {[%clk 0:00:19]}  Rxb4 {[%clk 0:00:56]} 39. Rc5+ {[%clk 0:00:20]}  Kd6 {[%clk 0:00:56]} 40. Rc6+ {[%clk 0:00:20]}  Ke7 {[%clk 0:00:51]} 41. Ra6 {[%clk 0:00:20]}  Bd7 {[%clk 0:00:44]} 42. h4 {[%clk 0:00:15]}  Rb3+ {[%clk 0:00:42]} 43. Kf4 {[%clk 0:00:14]}  Rh3 {[%clk 0:00:41]} 44. Ra7 {[%clk 0:00:10]}  Rxh4+ {[%clk 0:00:34]} 45. Ke5 {[%clk 0:00:11]}  Kd8 {[%clk 0:00:35]} 46. Ra8+ {[%clk 0:00:07]}  Kc7 {[%clk 0:00:32]} 47. Ra7+ {[%clk 0:00:05]}  Kd8 {[%clk 0:00:29]} 48. Ra8+ {[%clk 0:00:06]}  Ke7 {[%clk 0:00:29]} 49. Ra7 {[%clk 0:00:06]}  Rh2 {[%clk 0:00:12]} 50. Bc6 {[%clk 0:00:05]}  Re2+ {[%clk 0:00:11]} 51. Kf4 {[%clk 0:00:05]}  Rd2 {[%clk 0:00:11]} 52. Bxd7 {[%clk 0:00:05]}  Rxd7 {[%clk 0:00:11]} 53. Rxa4 {[%clk 0:00:06]}  Kf7 {[%clk 0:00:11]} 54. Ra6 {[%clk 0:00:05]}  Rd5 {[%clk 0:00:11]} 55. Kg4 {[%clk 0:00:05]}  g6 {[%clk 0:00:09]} 56. Ra7+ {[%clk 0:00:05]}  Kg8 {[%clk 0:00:09]} 57. Ra6 {[%clk 0:00:06]}  Kg7 {[%clk 0:00:09]} 58. Ra7+ {[%clk 0:00:07]}  Kg8 {[%clk 0:00:10]} 59. Ra6 {[%clk 0:00:07]}  Kg7 {[%clk 0:00:10]} 60. Ra7+ {[%clk 0:00:08]}  Kg8 {[%clk 0:00:11]} 1/2-1/2


[Site "https://www.chess.com"]

[Event "Titled Tuesday Blitz April 12 Early 2022"]
[White "Aslanov, Umid"]
[Black "Yeletsky, Ivan"]
[WhiteFideId "13412620"]
[BlackFideId "24180327"]
[WhiteElo "1796"]
[BlackElo "2319"]
[Result "0-1"]
[Round "09"]
[TimeControl "180+1"]
[Date "2022.04.13"]
[WhiteClock "0:00:14"]
[BlackClock "0:02:05"]

1. e4 {[%clk 0:03:00]}  d6 {[%clk 0:02:57]} 2. d4 {[%clk 0:03:00]}  Nf6 {[%clk 0:02:57]} 3. Nc3 {[%clk 0:03:01]}  g6 {[%clk 0:02:56]} 4. f4 {[%clk 0:03:01]}  Bg7 {[%clk 0:02:56]} 5. Nf3 {[%clk 0:03:01]}  c5 {[%clk 0:02:57]} 6. dxc5 {[%clk 0:02:59]}  Qa5 {[%clk 0:02:57]} 7. Bd3 {[%clk 0:02:43]}  Qxc5 {[%clk 0:02:56]} 8. Qe2 {[%clk 0:02:43]}  Bg4 {[%clk 0:02:55]} 9. Be3 {[%clk 0:02:42]}  Bxf3 {[%clk 0:02:48]} 10. Qxf3 {[%clk 0:02:41]}  Qh5 {[%clk 0:02:48]} 11. Qxh5 {[%clk 0:02:35]}  Nxh5 {[%clk 0:02:49]} 12. Nd5 {[%clk 0:02:31]}  Kd7 {[%clk 0:02:48]} 13. c3 {[%clk 0:02:19]}  Nc6 {[%clk 0:02:44]} 14. g4 {[%clk 0:02:14]}  Nf6 {[%clk 0:02:43]} 15. g5 {[%clk 0:02:09]}  Nh5 {[%clk 0:02:37]} 16. f5 {[%clk 0:01:56]}  e6 {[%clk 0:02:36]} 17. Nf4 {[%clk 0:01:54]}  Nxf4 {[%clk 0:02:34]} 18. Bxf4 {[%clk 0:01:55]}  h6 {[%clk 0:02:25]} 19. O-O-O {[%clk 0:01:43]}  hxg5 {[%clk 0:02:24]} 20. Bxg5 {[%clk 0:01:43]}  Bh6 {[%clk 0:02:24]} 21. Bxh6 {[%clk 0:01:42]}  Rxh6 {[%clk 0:02:24]} 22. fxe6+ {[%clk 0:01:39]}  fxe6 {[%clk 0:02:23]} 23. Rd2 {[%clk 0:01:15]}  Ne5 {[%clk 0:02:23]} 24. Bb5+ {[%clk 0:01:15]}  Ke7 {[%clk 0:02:23]} 25. Rg2 {[%clk 0:01:11]}  Rf8 {[%clk 0:02:19]} 26. Be2 {[%clk 0:01:07]}  Rf4 {[%clk 0:02:19]} 27. Kd2 {[%clk 0:01:01]}  Rxe4 {[%clk 0:02:19]} 28. Rhg1 {[%clk 0:00:56]}  Reh4 {[%clk 0:02:17]} 29. Rh1 {[%clk 0:00:43]}  d5 {[%clk 0:02:17]} 30. Ke3 {[%clk 0:00:41]}  Kd6 {[%clk 0:02:17]} 31. a3 {[%clk 0:00:24]}  b6 {[%clk 0:02:13]} 32. b4 {[%clk 0:00:24]}  Rh3+ {[%clk 0:02:13]} 33. Kd2 {[%clk 0:00:24]}  R6h4 {[%clk 0:02:08]} 34. Rf2 {[%clk 0:00:20]}  a5 {[%clk 0:02:05]} 35. bxa5 {[%clk 0:00:19]}  bxa5 {[%clk 0:02:06]} 36. Rb1 {[%clk 0:00:19]}  Rxh2 {[%clk 0:02:07]} 37. Rf8 {[%clk 0:00:16]}  Re4 {[%clk 0:02:04]} 38. Rb6+ {[%clk 0:00:16]}  Kc7 {[%clk 0:02:02]} 39. Rxe6 {[%clk 0:00:10]}  Nc4+ {[%clk 0:02:01]} 40. Kd3 {[%clk 0:00:10]}  Rxe6 {[%clk 0:02:02]} 41. a4 {[%clk 0:00:11]}  Rexe2 {[%clk 0:02:01]} 42. Rf7+ {[%clk 0:00:10]}  Kd6 {[%clk 0:02:01]} 43. Rd7+ {[%clk 0:00:11]}  Kxd7 {[%clk 0:02:00]} 44. Kd4 {[%clk 0:00:11]}  g5 {[%clk 0:02:01]} 45. Kc5 {[%clk 0:00:11]}  g4 {[%clk 0:02:02]} 46. Kb5 {[%clk 0:00:12]}  g3 {[%clk 0:02:03]} 47. Ka6 {[%clk 0:00:12]}  g2 {[%clk 0:02:04]} 48. Kb7 {[%clk 0:00:13]}  g1=Q {[%clk 0:02:04]} 49. Ka6 {[%clk 0:00:14]}  Qb6# {[%clk 0:02:05]} 0-1


[Site "https://www.chess.com"]

[Event "Titled Tuesday Blitz April 12 Early 2022"]
[White "Atakhan, Abtin"]
[Black "Gunina, Valentina"]
[WhiteFideId "22502203"]
[BlackFideId "4167570"]
[WhiteElo "2735"]
[BlackElo "2725"]
[Result "1-0"]
[Round "09"]
[TimeControl "180+1"]
[Date "2022.04.13"]
[WhiteClock "0:00:20"]
[BlackClock "0:00:56"]

1. c4 {[%clk 0:03:00]}  c6 {[%clk 0:02:58]} 2. g3 {[%clk 0:02:59]}  d5 {[%clk 0:02:58]} 3. Bg2 {[%clk 0:03:00]}  Nf6 {[%clk 0:02:59]} 4. Nf3 {[%clk 0:03:01]}  g6 {[%clk 0:02:58]} 5. b3 {[%clk 0:03:00]}  Bg7 {[%clk 0:02:58]} 6. Bb2 {[%clk 0:03:01]}  O-O {[%clk 0:02:59]} 7. O-O {[%clk 0:03:01]}  a5 {[%clk 0:02:57]} 8. Nc3 {[%clk 0:02:55]}  d4 {[%clk 0:02:44]} 9. Na4 {[%clk 0:02:54]}  d3 {[%clk 0:02:33]} 10. exd3 {[%clk 0:02:50]}  Qxd3 {[%clk 0:02:32]} 11. Nb6 {[%clk 0:02:48]}  Ra6 {[%clk 0:02:32]} 12. Nxc8 {[%clk 0:02:46]}  Rxc8 {[%clk 0:02:32]} 13. Re1 {[%clk 0:02:43]}  e6 {[%clk 0:02:30]} 14. Ne5 {[%clk 0:02:43]}  Qd8 {[%clk 0:02:29]} 15. Qe2 {[%clk 0:02:40]}  Qf8 {[%clk 0:02:12]} 16. Bh3 {[%clk 0:02:25]}  c5 {[%clk 0:02:08]} 17. Bg2 {[%clk 0:02:16]}  Rc7 {[%clk 0:02:06]} 18. Rad1 {[%clk 0:02:11]}  a4 {[%clk 0:01:54]} 19. d4 {[%clk 0:01:43]}  axb3 {[%clk 0:01:54]} 20. axb3 {[%clk 0:01:42]}  Nbd7 {[%clk 0:01:54]} 21. d5 {[%clk 0:01:40]}  exd5 {[%clk 0:01:52]} 22. cxd5 {[%clk 0:01:38]}  Rc8 {[%clk 0:01:29]} 23. Qb5 {[%clk 0:00:56]}  Rb6 {[%clk 0:01:15]} 24. Nxd7 {[%clk 0:00:43]}  Rxb5 {[%clk 0:01:13]} 25. Nxf8 {[%clk 0:00:42]}  Kxf8 {[%clk 0:01:13]} 26. Bh3 {[%clk 0:00:36]}  Rd8 {[%clk 0:01:13]} 27. Be5 {[%clk 0:00:25]}  Rxb3 {[%clk 0:01:05]} 28. Bc7 {[%clk 0:00:20]}  Rxd5 {[%clk 0:01:00]} 29. Rxd5 {[%clk 0:00:20]}  Nxd5 {[%clk 0:00:56]} 30. Bd6+ {[%clk 0:00:20]} 1-0


[Site "https://www.chess.com"]

[Event "Titled Tuesday Blitz April 12 Early 2022"]
[White "Avalos Parra, Joao"]
[Black "Silvestre, Christian"]
[WhiteFideId "3402541"]
[BlackFideId "30956269"]
[WhiteElo "2173"]
[BlackElo "2448"]
[Result "1-0"]
[Round "09"]
[TimeControl "180+1"]
[Date "2022.04.13"]
[WhiteClock "0:01:33"]
[BlackClock "0:00:14"]

1. d4 {[%clk 0:03:00]}  Nf6 {[%clk 0:02:56]} 2. Nc3 {[%clk 0:03:01]}  d5 {[%clk 0:02:48]} 3. Bg5 {[%clk 0:03:01]}  Bf5 {[%clk 0:02:46]} 4. Bxf6 {[%clk 0:03:00]}  gxf6 {[%clk 0:02:45]} 5. e4 {[%clk 0:03:01]}  dxe4 {[%clk 0:02:41]} 6. Qe2 {[%clk 0:03:02]}  Nc6 {[%clk 0:02:35]} 7. O-O-O {[%clk 0:02:39]}  Nxd4 {[%clk 0:02:27]} 8. Qe3 {[%clk 0:02:37]}  c5 {[%clk 0:02:21]} 9. Bb5+ {[%clk 0:02:35]}  Bd7 {[%clk 0:02:08]} 10. Nxe4 {[%clk 0:02:29]}  Bg7 {[%clk 0:01:05]} 11. Bxd7+ {[%clk 0:02:27]}  Qxd7 {[%clk 0:01:04]} 12. Nxc5 {[%clk 0:02:28]}  Qc6 {[%clk 0:00:49]} 13. Qxd4 {[%clk 0:02:25]}  O-O {[%clk 0:00:49]} 14. Nd7 {[%clk 0:02:21]}  Rac8 {[%clk 0:00:44]} 15. c3 {[%clk 0:02:18]}  Rfd8 {[%clk 0:00:43]} 16. Nf3 {[%clk 0:02:14]}  f5 {[%clk 0:00:35]} 17. Qd5 {[%clk 0:02:02]}  Qh6+ {[%clk 0:00:24]} 18. Kb1 {[%clk 0:01:59]}  e6 {[%clk 0:00:20]} 19. Qb3 {[%clk 0:01:50]}  Rc7 {[%clk 0:00:19]} 20. Nde5 {[%clk 0:01:47]}  Rdc8 {[%clk 0:00:17]} 21. Rd7 {[%clk 0:01:43]}  Bxe5 {[%clk 0:00:15]} 22. Nxe5 {[%clk 0:01:42]}  Qg7 {[%clk 0:00:15]} 23. Rxc7 {[%clk 0:01:41]}  Rxc7 {[%clk 0:00:16]} 24. f4 {[%clk 0:01:35]}  Qxg2 {[%clk 0:00:15]} 25. Qd1 {[%clk 0:01:35]}  Qe4+ {[%clk 0:00:15]} 26. Ka1 {[%clk 0:01:33]}  Rc8 {[%clk 0:00:15]} 27. Rg1+ {[%clk 0:01:33]}  Kh8 {[%clk 0:00:14]} 28. Nxf7# {[%clk 0:01:33]} 1-0


[Site "https://www.chess.com"]

[Event "Titled Tuesday Blitz April 12 Early 2022"]
[White "Bachmann, Axel"]
[Black "Piliczewski, Bogusz"]
[WhiteFideId "3700488"]
[BlackFideId "1104144"]
[WhiteElo "2587"]
[BlackElo "1896"]
[Result "1-0"]
[Round "09"]
[TimeControl "180+1"]
[Date "2022.04.13"]
[WhiteClock "0:00:19"]
[BlackClock "0:00:21"]

1. d4 {[%clk 0:03:00]}  c6 {[%clk 0:03:00]} 2. c4 {[%clk 0:03:00]}  d5 {[%clk 0:03:00]} 3. Nf3 {[%clk 0:03:00]}  Nf6 {[%clk 0:03:00]} 4. g3 {[%clk 0:03:01]}  Bf5 {[%clk 0:02:59]} 5. Nc3 {[%clk 0:03:00]}  e6 {[%clk 0:02:59]} 6. Nh4 {[%clk 0:03:00]}  Bg4 {[%clk 0:02:58]} 7. h3 {[%clk 0:03:00]}  Bh5 {[%clk 0:02:58]} 8. g4 {[%clk 0:03:00]}  Nfd7 {[%clk 0:02:58]} 9. Qb3 {[%clk 0:02:57]}  b6 {[%clk 0:02:50]} 10. Bg2 {[%clk 0:02:56]}  Qxh4 {[%clk 0:02:46]} 11. cxd5 {[%clk 0:02:57]}  exd5 {[%clk 0:02:18]} 12. Nxd5 {[%clk 0:02:58]}  Bd6 {[%clk 0:02:17]} 13. Qe3+ {[%clk 0:02:14]}  Kf8 {[%clk 0:02:04]} 14. gxh5 {[%clk 0:02:08]}  Qxh5 {[%clk 0:02:03]} 15. Nf4 {[%clk 0:01:56]}  Qf5 {[%clk 0:01:59]} 16. Be4 {[%clk 0:01:52]}  Qxf4 {[%clk 0:01:58]} 17. Qxf4 {[%clk 0:01:52]}  Bxf4 {[%clk 0:01:58]} 18. Bxf4 {[%clk 0:01:53]}  Ke7 {[%clk 0:01:38]} 19. Rc1 {[%clk 0:01:49]}  Rc8 {[%clk 0:01:31]} 20. d5 {[%clk 0:01:49]}  Nf6 {[%clk 0:01:25]} 21. Bf5 {[%clk 0:01:25]}  Rd8 {[%clk 0:01:22]} 22. dxc6 {[%clk 0:01:19]}  Nxc6 {[%clk 0:01:07]} 23. Rxc6 {[%clk 0:01:17]}  Nd5 {[%clk 0:01:05]} 24. Bg5+ {[%clk 0:01:07]}  f6 {[%clk 0:01:04]} 25. Bc1 {[%clk 0:00:57]}  g6 {[%clk 0:01:03]} 26. Bg4 {[%clk 0:00:52]}  Rd6 {[%clk 0:00:57]} 27. Rxd6 {[%clk 0:00:48]}  Kxd6 {[%clk 0:00:56]} 28. O-O {[%clk 0:00:48]}  f5 {[%clk 0:00:55]} 29. Bf3 {[%clk 0:00:46]}  Rc8 {[%clk 0:00:55]} 30. Rd1 {[%clk 0:00:43]}  Rc5 {[%clk 0:00:52]} 31. Rxd5+ {[%clk 0:00:42]}  Rxd5 {[%clk 0:00:52]} 32. Bxd5 {[%clk 0:00:43]}  Kxd5 {[%clk 0:00:52]} 33. Kg2 {[%clk 0:00:38]}  h6 {[%clk 0:00:46]} 34. Kf3 {[%clk 0:00:39]}  g5 {[%clk 0:00:46]} 35. h4 {[%clk 0:00:34]}  f4 {[%clk 0:00:40]} 36. hxg5 {[%clk 0:00:32]}  hxg5 {[%clk 0:00:40]} 37. Kg4 {[%clk 0:00:31]}  Kd4 {[%clk 0:00:35]} 38. Kxg5 {[%clk 0:00:30]}  f3 {[%clk 0:00:35]} 39. Be3+ {[%clk 0:00:25]}  Ke4 {[%clk 0:00:35]} 40. exf3+ {[%clk 0:00:25]}  Kxf3 {[%clk 0:00:34]} 41. a4 {[%clk 0:00:22]}  Ke4 {[%clk 0:00:30]} 42. Kg4 {[%clk 0:00:20]}  Kd3 {[%clk 0:00:28]} 43. a5 {[%clk 0:00:20]}  b5 {[%clk 0:00:26]} 44. Bxa7 {[%clk 0:00:19]}  Kc2 {[%clk 0:00:26]} 45. b4 {[%clk 0:00:19]}  Kc3 {[%clk 0:00:25]} 46. Bc5 {[%clk 0:00:19]}  Kc4 {[%clk 0:00:24]} 47. a6 {[%clk 0:00:19]}  Kd5 {[%clk 0:00:21]} 48. a7 {[%clk 0:00:19]} 1-0


[Site "https://www.chess.com"]